bitfinex/quotes_ETHUSD_20220201
["timestamp","ask_amount","ask_price","bid_price","bid_amount"]
[1643752431150,1.51781746,2784.7,2784.5,1.71477]
[1643752431351,1.51781746,2784.7,2784.5,2.71477]
[1643752432751,1.51781746,2784.7,2784.5,1.817]
[1643752433153,1.51781746,2784.7,2784.5,0.817]
[1643752433374,1.51781746,2784.7,2784.5,1.817]
[1643752433781,1.46781746,2784.7,2784.5,0.817]
[1643752434279,1.46781746,2784.7,2784.5,0.767]
[1643752434679,1.46781746,2784.7,2784.5,1.067]
[1643752438832,1.76478054,2785.3,2784.5,1.067]
[1643752439834,0.36803156,2784.8,2784.5,1.067]
[1643752440039,1.76478054,2785.3,2784.5,1.067]
[1643752440233,0.85997858,2785.3,2784.5,2.0002814]
[1643752440435,0.1794,2785.3,2784.5,2.0002814]
[1643752441283,0.1794,2785.3,2784.6,1.84859675]
[1643752441487,0.37158348,2785.0,2784.5,1.4832814]
[1643752441682,0.37158348,2785.0,2784.5,0.55]
[1643752441883,0.37158348,2785.0,2784.5,0.25]
[1643752442184,0.37158348,2785.0,2784.6,1.87963309]
[1643752442383,0.37158348,2785.0,2784.6,2.17963309]
[1643752442586,0.37158348,2785.0,2784.4,4.68359833]
[1643752442783,0.85997858,2785.3,2784.4,4.68359833]
[1643752443590,0.85997858,2785.3,2784.4,2.74775]
[1643752443791,0.85997858,2785.3,2784.4,1.85]
[1643752444192,0.85997858,2785.3,2784.4,0.55]
[1643752444492,0.85997858,2785.3,2784.4,1.55]
[1643752444931,0.34552389,2785.0,2784.4,1.55]
[1643752445134,0.34552389,2785.0,2784.4,0.55]
[1643752445331,0.34552389,2785.0,2784.4,1.55]
[1643752446133,0.34552389,2785.0,2784.4,0.55]
[1643752446933,0.34552389,2785.0,2784.4,2.44404096]
[1643752447334,0.34552389,2785.0,2784.4,3.44404096]
[1643752447534,0.34552389,2785.0,2784.4,1.55]
[1643752447737,0.34552389,2785.0,2784.4,3.41370262]
[1643752448375,0.1794,2785.3,2784.4,3.41370262]
[1643752448786,1.80584951,2785.3,2784.4,3.41370262]
[1643752448980,1.12527093,2785.3,2784.4,3.41370262]
[1643752449388,0.4191487,2784.9,2784.4,3.41370262]
[1643752449786,0.4191487,2784.9,2784.4,2.11370262]
[1643752450387,0.4191487,2784.9,2784.4,0.25]
[1643752451184,0.4191487,2784.9,2784.4,2.11478454]
[1643752451383,0.4191487,2784.9,2784.4,0.25]
[1643752451782,1.80584951,2785.3,2784.4,2.13955223]
[1643752451984,1.80584951,2785.3,2784.4,3.13955223]
[1643752452235,1.12527093,2785.3,2784.4,3.13955223]
[1643752453439,0.41167472,2785.1,2784.4,3.13955223]
[1643752453940,1.51774863,2785.0,2784.4,2.13955223]
[1643752455978,1.51623465,2785.0,2784.4,2.13955223]
[1643752456177,1.51623465,2785.0,2784.5,0.89776]
[1643752456577,1.51623465,2785.0,2784.6,1.87214526]
[1643752457779,1.12527093,2785.3,2784.6,1.87214526]
[1643752458183,1.80584951,2785.3,2784.6,1.87214526]
[1643752458785,2.17434653,2785.3,2784.6,1.87214526]
[1643752459185,2.17434653,2785.3,2784.5,1.19776]
[1643752459384,1.99494653,2785.3,2784.5,1.19776]
[1643752460932,0.68057858,2785.2,2784.5,1.19679802]
[1643752462728,0.68057858,2785.2,2784.5,0.29903802]
[1643752462729,1.47513031,2785.2,2784.5,0.29903802]
[1643752462930,1.47513031,2785.2,2784.4,2.14776]
[1643752462931,1.47513031,2785.2,2784.4,1.14776]
[1643752463131,0.68057858,2785.1,2784.4,1.14776]
[1643752463374,0.68057858,2785.1,2784.5,1.89476635]
[1643752463586,1.65453031,2785.2,2784.5,1.89476635]
[1643752463782,0.68057858,2785.1,2784.5,1.89476635]
[1643752464181,0.68057858,2785.1,2784.5,2.19476635]
[1643752464581,0.68057858,2785.1,2784.4,1.14776]
[1643752465281,0.68057858,2785.1,2784.4,0.25]
[1643752467627,0.68057858,2785.1,2784.5,1.87392281]
[1643752468635,0.68057858,2785.1,2784.5,1.87211036]
[1643752469131,0.68057858,2785.1,2784.5,1.8743475]
[1643752469338,0.68057858,2785.0,2784.5,1.8743475]
[1643752469537,0.68057858,2785.0,2784.5,1.8902439]
[1643752469733,0.68057858,2785.0,2784.4,1.14781]
[1643752469932,0.68057858,2785.0,2784.4,2.44781]
[1643752470134,0.68057858,2785.0,2784.5,1.88343901]
[1643752470731,0.68057858,2785.0,2784.4,2.44781]
[1643752470983,0.68057858,2785.0,2784.5,1.88461538]
[1643752471784,0.68057858,2785.1,2784.5,1.88461538]
[1643752471986,0.68057858,2785.0,2784.5,1.88461538]
[1643752472587,0.68057858,2785.1,2784.5,1.88461538]
[1643752474291,0.68057858,2785.1,2784.7,0.44894562]
[1643752474500,0.86191698,2785.4,2784.9,21.09220681]
[1643752474739,0.68251698,2785.4,2785.0,3.95116365]
[1643752474938,1.35314946,2786.0,2785.0,3.95116365]
[1643752474939,0.68251698,2785.9,2785.0,4.13056365]
[1643752475154,0.68251698,2786.0,2785.1,21.09426715]
[1643752475341,0.86191698,2786.1,2785.9,1.270652]
[1643752475644,1.35598135,2786.6,2786.0,2.47959]
[1643752475645,0.1794,2786.5,2786.0,2.47959]
[1643752475937,1.51697329,2786.4,2786.1,22.0264]
[1643752476138,1.51697329,2787.0,2786.1,22.33956255]
[1643752476337,0.89617558,2787.1,2786.1,22.33956255]
[1643752476338,1.51693898,2786.9,2786.3,19.56302671]
[1643752476534,1.51693898,2786.9,2786.4,2.12070004]
[1643752476734,0.42110357,2787.1,2786.4,3.42070004]
[1643752476933,0.42110357,2787.1,2786.5,0.89705]
[1643752477135,0.42110357,2787.1,2786.6,1.664062]
[1643752477337,0.42110357,2787.1,2786.6,2.964062]
[1643752477535,0.42110357,2787.1,2786.6,0.767]
[1643752477738,0.42110357,2787.1,2786.6,0.25]
[1643752477739,3.0619569,2787.0,2786.6,0.25]
[1643752477936,0.89617558,2786.8,2786.6,0.25]
[1643752478136,2.45891388,2786.7,2786.0,0.4294]
[1643752478382,0.90534192,2786.5,2786.0,0.4294]
[1643752478586,2.19654623,2786.4,2786.0,0.4294]
[1643752478786,3.15490321,2786.4,2786.0,0.4294]
[1643752479089,2.69884296,2786.3,2786.0,0.4294]
[1643752479286,0.1794,2786.2,2786.0,0.4294]
[1643752480285,0.55382351,2786.2,2786.0,0.4294]
[1643752480885,7.69358725,2786.1,2786.0,0.4294]
[1643752481087,7.87298725,2786.1,2786.0,0.4294]
[1643752484938,5.8794,2786.1,2786.0,0.4294]
[1643752485537,8.97570493,2786.1,2786.0,0.4294]
[1643752486583,0.0706,2786.0,2785.2,0.25]
[1643752486784,0.0706,2786.0,2784.7,0.19192959]
[1643752486785,0.73520908,2785.5,2784.7,1.1794]
[1643752486992,2.1243822,2785.4,2784.8,0.3]
[1643752487182,0.73520908,2785.5,2784.7,0.3]
[1643752487382,0.73520908,2785.5,2784.6,1.9027]
[1643752487582,2.76290935,2785.5,2784.6,1.9027]
[1643752487783,2.76290935,2785.5,2784.6,0.6]
[1643752487985,0.68520908,2785.5,2784.5,1.98769]
[1643752488283,0.40746951,2785.0,2784.5,3.16709]
[1643752488488,2.69199279,2785.5,2784.5,3.16709]
[1643752488689,2.6913672,2785.5,2784.5,3.16709]
[1643752489289,2.68959155,2785.5,2784.5,3.16709]
[1643752489491,0.33483524,2785.0,2784.5,3.16709]
[1643752489732,2.68959155,2785.5,2784.5,1.77959]
[1643752490129,2.68959155,2785.5,2784.5,0.77959]
[1643752490329,2.68005444,2785.5,2784.5,0.77959]
[1643752490932,2.68005444,2785.5,2784.5,0.6]
[1643752491130,0.68520908,2785.5,2784.5,0.6]
[1643752491328,0.68520908,2785.5,2784.5,0.3]
[1643752491528,0.68520908,2785.5,2784.4,2.9816]
[1643752491734,0.34070042,2785.1,2784.4,2.9816]
[1643752492133,0.34070042,2785.1,2784.4,0.1794]
[1643752492332,0.34070042,2785.1,2784.3,3.9493]
[1643752492333,2.11272141,2785.0,2784.3,3.9493]
[1643752492531,2.11272141,2785.0,2784.0,2.45171676]
[1643752492532,2.29212141,2785.0,2784.0,0.13819997]
[1643752492731,2.97090294,2785.0,2783.9,0.1794]
[1643752492932,0.67878153,2784.8,2783.9,0.1794]
[1643752493131,0.44642304,2784.0,2783.9,0.1794]
[1643752493784,0.7444013,2784.3,2783.9,0.1794]
[1643752494483,0.7444013,2784.3,2783.9,0.1294]
[1643752494985,0.1794,2784.2,2783.9,0.1294]
[1643752496186,0.43286631,2784.1,2783.9,0.1294]
[1643752498235,0.1794,2784.2,2783.9,0.1294]
[1643752498436,0.1794,2784.4,2783.9,0.1294]
[1643752498639,1.5180144,2784.3,2783.9,0.1294]
[1643752498837,0.1794,2784.6,2783.9,0.1294]
[1643752499037,1.51798827,2784.5,2783.9,0.1294]
[1643752499235,0.1794,2784.4,2783.9,0.1294]
[1643752499634,0.78962359,2784.6,2783.9,0.1294]
[1643752499841,1.69735477,2784.5,2783.9,0.1294]
[1643752500143,0.78962359,2784.6,2783.9,0.1294]
[1643752500335,1.51796246,2784.5,2783.9,0.1294]
[1643752501001,0.1794,2785.0,2783.9,0.82599]
[1643752501298,1.51782694,2784.9,2783.9,0.99659]
[1643752501506,1.51782694,2785.0,2783.9,1.51448679]
[1643752501697,1.51782694,2784.8,2783.9,1.81448679]
[1643752501898,0.38827355,2784.7,2783.9,1.81448679]
[1643752502098,0.38827355,2784.7,2784.2,0.8978324]
[1643752502301,0.67534034,2784.8,2784.3,0.6]
[1643752502604,0.1794,2785.1,2784.4,0.25]
[1643752502800,1.51779619,2785.0,2784.4,0.25]
[1643752502999,1.51779619,2784.9,2784.4,0.25]
[1643752503200,0.1794,2785.4,2784.4,0.55]
[1643752503404,1.51778809,2785.3,2784.4,0.55]
[1643752503604,0.38297985,2784.9,2784.4,0.55]
[1643752504730,0.38297985,2784.9,2784.4,0.25]
[1643752504935,1.51781524,2784.8,2784.4,0.25]
[1643752505931,0.38297985,2784.9,2784.4,0.25]
[1643752506135,1.51781122,2784.8,2784.4,0.25]
[1643752506942,0.1794,2785.4,2784.4,0.25]
[1643752507134,1.51780086,2785.3,2784.4,0.25]
[1643752507336,2.25468641,2785.2,2784.4,0.25]
[1643752507535,1.51780086,2785.1,2784.4,0.25]
[1643752507935,0.32662513,2784.7,2784.4,0.25]
[1643752508590,0.88245761,2784.6,2784.4,0.25]
[1643752508791,3.48640421,2784.5,2784.0,0.1794]
[1643752508987,1.51794936,2784.4,2784.0,0.1794]
[1643752509393,2.02187623,2784.3,2784.0,0.1794]
[1643752509690,0.8589928,2784.1,2784.0,0.1794]
[1643752509891,2.37715626,2784.1,2784.0,0.1794]
[1643752510589,0.8589928,2784.1,2784.0,0.1794]
[1643752511489,2.37718788,2784.1,2784.0,0.1794]
[1643752511892,4.64449115,2784.1,2784.0,0.1794]
[1643752512133,2.55658567,2784.1,2784.0,0.1794]
[1643752512333,7.30658567,2784.1,2784.0,0.1794]
[1643752512533,7.30658567,2784.1,2783.5,0.25]
[1643752512733,7.30658567,2784.1,2782.9,1.22140852]
[1643752512734,0.38903562,2783.1,2782.9,1.22140852]
[1643752512937,2.32644014,2784.0,2782.9,1.22140852]
[1643752512938,2.32644014,2784.0,2782.9,1.52140852]
[1643752513135,2.32644014,2784.0,2782.9,0.82140852]
[1643752513334,2.32644014,2784.0,2782.9,0.52140852]
[1643752513552,0.6751055,2783.1,2782.9,0.22140852]
[1643752513740,0.6751055,2783.1,2782.6,0.1796]
[1643752514243,0.32941208,2782.8,2782.6,0.1796]
[1643752515738,0.6751055,2783.1,2782.6,0.1796]
[1643752516995,0.43066093,2782.8,2782.3,1.2]
[1643752517693,0.6751055,2783.1,2782.3,1.2]
[1643752518495,0.6751055,2783.1,2782.5,0.25]
[1643752518695,0.37895507,2783.0,2782.5,0.25]
[1643752521038,0.6751055,2783.1,2782.5,0.25]
[1643752529242,0.67383465,2783.1,2782.5,0.25]
[1643752529646,0.1796,2783.0,2782.5,0.25]
[1643752531693,0.99999999,2782.9,2782.5,0.25]
[1643752531891,2.69002654,2782.8,2781.8,0.25]
[1643752532094,0.35528151,2781.9,2781.4,1.1258]
[1643752532292,0.99999999,2782.7,2781.7,0.25]
[1643752532592,4.2142177,2782.6,2781.7,0.25]
[1643752532790,1.51903202,2782.5,2781.7,0.25]
[1643752532991,2.32821485,2782.4,2781.7,0.25]
[1643752533393,0.43244436,2782.1,2781.7,0.25]
[1643752533599,0.43244436,2782.1,2781.1,0.1797]
[1643752533600,2.91700785,2782.0,2781.1,0.1797]
[1643752533802,0.1797,2781.9,2781.1,0.1797]
[1643752534846,0.1797,2781.9,2780.9,0.31692044]
[1643752535247,0.70600734,2781.5,2780.9,0.31692044]
[1643752535454,0.70600734,2781.5,2780.8,0.296815]
[1643752536455,0.70600734,2781.5,2780.9,0.31542612]
[1643752536657,0.1797,2782.0,2780.9,0.31542612]
[1643752537659,0.80915527,2781.6,2780.9,0.31542612]
[1643752537858,0.1797,2781.5,2780.9,0.31542612]
[1643752538059,0.1797,2782.0,2780.9,2.22098376]
[1643752538258,0.1797,2782.0,2780.9,3.82098376]
[1643752538490,0.1797,2782.2,2780.9,4.00068376]
[1643752538691,0.1797,2782.4,2781.0,1.1366]
[1643752538891,0.1797,2782.4,2781.1,1.75]
[1643752538892,0.89520495,2782.0,2781.1,1.75]
[1643752539094,0.39648208,2781.8,2781.1,2.05]
[1643752539290,0.39648208,2781.8,2781.1,3.05]
[1643752540089,0.89520495,2782.0,2781.1,3.05]
[1643752540891,0.89520495,2782.0,2781.1,2.07039635]
[1643752541091,0.36279162,2781.9,2781.1,2.07039635]
[1643752541695,0.36279162,2781.9,2781.1,1.3]
[1643752542154,0.36279162,2781.9,2781.1,0.3]
[1643752542454,0.36279162,2781.9,2781.1,1.0]
[1643752542653,0.36279162,2781.9,2781.0,2.7366]
[1643752542855,0.54249162,2781.9,2781.1,1.0]
[1643752543354,0.54249162,2781.9,2781.0,2.7366]
[1643752543560,0.54249162,2781.9,2781.0,2.45870875]
[1643752543759,0.54249162,2781.9,2781.1,1.0]
[1643752543959,0.54249162,2781.9,2781.0,3.45870875]
[1643752544160,0.54249162,2781.9,2781.0,2.45870875]
[1643752544364,0.54249162,2781.9,2781.1,1.0]
[1643752544560,0.54249162,2781.9,2781.0,2.7366]
[1643752544762,0.1797,2781.9,2781.1,1.0]
[1643752545263,0.1797,2781.9,2781.0,1.4366]
[1643752545665,0.1797,2781.9,2781.0,2.4366]
[1643752545885,0.61205299,2781.9,2781.0,2.4366]
[1643752546685,0.61205299,2781.9,2781.0,1.4366]
[1643752546890,2.63866363,2781.9,2781.0,2.4366]
[1643752547087,2.11717129,2781.8,2781.0,2.4366]
[1643752547287,2.11717129,2781.8,2781.0,1.1366]
[1643752547587,2.11717129,2781.8,2780.8,0.296815]
[1643752547588,0.67633567,2781.1,2780.8,0.296815]
[1643752548591,0.66729464,2781.1,2780.8,0.296815]
[1643752549396,1.07003116,2781.1,2780.8,0.296815]
[1643752551035,0.1797,2781.5,2780.8,0.296815]
[1643752551235,3.864,2781.7,2780.8,0.296815]
[1643752551236,2.2213,2781.6,2780.8,0.296815]
[1643752551737,2.2178558,2781.6,2780.8,0.296815]
[1643752552136,0.37342597,2781.1,2780.8,0.296815]
[1643752553587,0.1797,2781.6,2780.8,0.296815]
[1643752554687,0.34113016,2781.2,2780.8,0.296815]
[1643752555489,0.1797,2781.6,2780.8,0.296815]
[1643752556689,0.57905237,2781.6,2780.8,0.296815]
[1643752557143,0.57905237,2781.6,2780.8,0.246815]
[1643752558645,0.1797,2781.6,2780.8,0.246815]
[1643752558846,0.1797,2781.9,2780.8,0.246815]
[1643752559046,0.1797,2782.2,2780.9,1.6434]
[1643752559246,0.1797,2782.2,2780.9,2.2434]
[1643752559445,0.1797,2782.2,2780.9,2.67325823]
[1643752559651,0.1797,2782.2,2781.6,0.32572992]
[1643752560147,0.1797,2782.2,2781.4,0.3]
[1643752560546,0.1797,2782.2,2781.2,0.517]
[1643752560993,0.1797,2782.2,2781.2,1.69659]
[1643752561200,0.1797,2782.2,2781.4,0.8327674]
[1643752561596,0.1797,2782.5,2781.4,1.4327674]
[1643752561797,0.1797,2782.5,2781.4,2.4327674]
[1643752561993,0.1797,2782.5,2781.4,2.6123574]
[1643752562397,1.48653387,2782.5,2781.8,0.37912946]
[1643752564002,1.48653387,2782.5,2781.5,0.01274067]
[1643752564203,3.49052111,2782.5,2781.5,0.01274067]
[1643752564401,1.48653387,2782.5,2781.5,0.01274067]
[1643752565242,1.48653387,2782.5,2781.6,0.39102999]
[1643752565441,1.51909358,2782.4,2781.6,0.39102999]
[1643752565640,1.48653387,2782.5,2781.6,0.39102999]
[1643752565641,0.1797,2782.3,2781.6,0.39102999]
[1643752565844,0.1797,2782.4,2781.6,0.39102999]
[1643752567950,1.51921069,2782.3,2781.5,1.0]
[1643752568152,0.1797,2782.2,2781.3,1.1327]
[1643752568393,1.51921069,2782.1,2781.3,1.1327]
[1643752568593,2.1376569,2782.0,2781.3,1.1327]
[1643752568795,2.21512074,2782.0,2781.3,1.1327]
[1643752568993,2.01223362,2781.9,2781.3,1.1327]
[1643752569193,2.01223362,2781.9,2780.9,1.1797]
[1643752569394,0.1797,2781.8,2781.1,0.3]
[1643752569593,0.1797,2781.8,2780.9,1.7797]
[1643752569998,0.79606042,2782.0,2780.9,1.7797]
[1643752569999,0.1797,2781.9,2780.9,1.7797]
[1643752570396,0.1797,2781.9,2780.9,2.64383883]
[1643752571197,0.79606042,2782.0,2780.9,3.54381034]
[1643752571395,0.79606042,2782.0,2781.5,0.43223382]
[1643752571597,0.79606042,2782.0,2780.9,3.54381034]
[1643752571997,0.79606042,2782.0,2781.0,0.517]
[1643752573143,0.79606042,2782.0,2781.4,0.38682919]
[1643752573344,1.51924052,2781.9,2781.4,0.38682919]
[1643752576201,1.51924052,2781.8,2781.4,0.38682919]
[1643752576402,0.1797,2782.4,2781.4,0.38682919]
[1643752576603,1.51920381,2782.3,2781.4,0.38682919]
[1643752576804,0.1797,2782.2,2781.4,0.38682919]
[1643752577003,1.51920381,2782.1,2781.4,1.49541806]
[1643752577401,1.51920381,2782.0,2781.4,1.49541806]
[1643752577603,0.1797,2782.3,2781.4,1.49541806]
[1643752577604,1.51920381,2781.9,2781.4,1.49541806]
[1643752578002,0.1797,2782.3,2781.4,0.68682919]
[1643752578203,1.51914231,2782.2,2781.4,0.68682919]
[1643752578404,0.1797,2782.1,2781.4,1.5868007]
[1643752578603,1.51914231,2782.0,2781.4,0.68682919]
[1643752578804,0.1797,2782.3,2781.4,0.68682919]
[1643752579743,0.1797,2782.3,2781.4,1.5868007]
[1643752580144,0.1797,2782.3,2781.4,2.5868007]
[1643752580943,0.53614702,2782.3,2781.4,2.5868007]
[1643752581951,0.1797,2782.3,2781.4,2.5868007]
[1643752582150,0.1797,2782.3,2781.4,1.68682919]
[1643752582552,0.1797,2782.3,2781.4,1.98682919]
[1643752582754,0.1797,2782.3,2781.4,2.50382919]
[1643752583791,0.1797,2782.3,2781.4,1.20382919]
[1643752584793,0.1797,2782.3,2781.4,2.20382919]
[1643752584992,0.1797,2782.3,2781.4,2.50382919]
[1643752585697,0.1797,2782.3,2781.4,3.4038007]
[1643752586598,0.1797,2782.6,2781.6,0.89997151]
[1643752586802,3.75300875,2783.1,2781.6,0.89997151]
[1643752586803,0.1797,2782.7,2781.7,0.69659]
[1643752586998,0.1797,2782.7,2781.7,1.59656151]
[1643752587242,0.1797,2782.7,2781.8,1.19997151]
[1643752587445,4.68012557,2782.8,2781.9,0.517]
[1643752587642,4.85982557,2782.8,2781.9,0.517]
[1643752587842,0.79952557,2782.8,2782.0,0.25]
[1643752588050,0.79952557,2782.8,2782.1,0.517]
[1643752588252,0.79952557,2782.8,2782.1,0.817]
[1643752589650,0.79952557,2782.8,2782.3,0.31577361]
[1643752590049,0.57471446,2783.0,2782.3,0.31577361]
[1643752590050,0.1797,2783.0,2782.3,0.31577361]
[1643752590250,0.1796,2783.1,2782.3,0.31577361]
[1643752591109,1.4356825,2783.1,2782.3,0.31577361]
[1643752596161,0.00499143,2783.2,2782.3,0.31577361]
[1643752596162,0.1796,2783.0,2782.3,0.31577361]
[1643752596957,0.1796,2783.1,2782.3,0.31577361]
[1643752598909,1.51885065,2783.0,2782.3,0.31577361]
[1643752599301,1.51885065,2782.9,2782.3,0.31577361]
[1643752599503,1.51885065,2782.8,2782.3,0.31577361]
[1643752599702,1.51885065,2782.7,2782.3,0.31577361]
[1643752599901,1.51885065,2783.1,2782.3,0.31577361]
[1643752600601,1.51885065,2783.1,2782.2,1.42985823]
[1643752600602,0.84897103,2782.7,2782.2,1.42985823]
[1643752600802,0.84897103,2782.7,2782.2,1.0]
[1643752601203,0.84897103,2782.7,2782.1,2.4756]
[1643752601605,0.1796,2783.1,2782.3,0.43063159]
[1643752601802,1.51887297,2783.0,2782.3,0.43063159]
[1643752602445,1.51887297,2783.0,2782.1,2.1756]
[1643752602646,0.86514714,2782.9,2782.1,1.996]
[1643752602847,1.51887297,2782.8,2782.1,1.996]
[1643752603454,1.51887297,2782.8,2782.2,0.44375161]
[1643752604263,1.51887297,2782.8,2782.0,0.25]
[1643752604264,3.51887297,2782.8,2782.0,0.25]
[1643752604461,1.69857297,2782.7,2782.0,0.25]
[1643752604656,2.3773545,2782.7,2782.0,0.25]
[1643752604856,2.1976545,2782.6,2782.0,0.25]
[1643752605057,0.1797,2782.5,2782.0,0.25]
[1643752605259,0.73676884,2782.3,2782.0,0.25]
[1643752605459,2.0315807,2782.2,2782.0,0.25]
[1643752605658,1.51887297,2782.1,2782.0,0.25]
[1643752606289,1.51887297,2782.1,2781.6,1.1334]
[1643752606490,3.51887297,2782.1,2781.6,1.1334]
[1643752606691,1.51887297,2782.0,2781.3,6.9964]
[1643752606993,0.51270773,2782.2,2781.1,2.4361]
[1643752606994,1.51887297,2781.9,2781.1,2.4361]
[1643752607188,1.51887297,2781.8,2781.1,2.4361]
[1643752607390,2.49753263,2782.2,2781.1,2.4361]
[1643752607391,0.8163624,2781.6,2781.1,2.4361]
[1643752607589,0.8163624,2781.6,2781.1,1.4361]
[1643752607789,0.8163624,2781.6,2781.1,0.3]
[1643752607990,0.8163624,2781.6,2781.0,1.3]
[1643752608190,0.8163624,2781.6,2781.0,0.3]
[1643752608391,0.8163624,2781.6,2781.0,1.0]
[1643752608795,0.8163624,2781.6,2780.9,2.85926151]
[1643752608995,0.8163624,2781.6,2780.9,0.77959]
[1643752609195,0.8163624,2781.6,2781.0,1.0]
[1643752609497,0.8163624,2781.6,2780.9,0.47959]
[1643752613822,0.8163624,2781.6,2780.9,0.17959]
[1643752614024,0.8163624,2781.6,2780.8,0.246815]
[1643752615225,0.8163624,2781.6,2780.8,0.66032081]
[1643752615226,1.51951493,2781.5,2780.8,0.66032081]
[1643752615425,0.8163624,2781.6,2780.8,0.66032081]
[1643752615825,0.8163624,2781.6,2780.8,0.246815]
[1643752616628,6.47878955,2782.2,2780.8,0.246815]
[1643752616829,1.519437,2782.1,2781.1,0.43437918]
[1643752617158,0.1797,2782.0,2780.8,0.426405]
[1643752617360,1.519437,2781.9,2780.8,0.426405]
[1643752617755,0.73177227,2781.7,2780.8,0.426405]
[1643752618458,0.73177227,2781.7,2781.0,0.37592846]
[1643752620062,0.1797,2782.1,2781.1,1.86251808]
[1643752620262,1.51941155,2782.0,2781.1,2.17205882]
[1643752620462,0.1797,2781.9,2781.1,2.17205882]
[1643752620662,0.1797,2781.9,2781.1,3.17205882]
[1643752620663,1.51941155,2781.8,2781.1,3.17205882]
[1643752620903,1.51941155,2781.8,2781.1,1.3]
[1643752621104,0.90806476,2781.9,2781.1,3.165727]
[1643752621310,0.90806476,2781.9,2781.2,1.0]
[1643752621707,0.90806476,2781.9,2781.1,3.165727]
[1643752621907,0.90806476,2781.9,2781.1,2.165727]
[1643752622105,0.90806476,2781.9,2781.2,1.0]
[1643752622410,0.90806476,2781.9,2781.1,3.165727]
[1643752622806,0.90806476,2781.9,2781.1,1.3]
[1643752623007,0.90806476,2781.9,2781.0,2.65389715]
[1643752623311,1.51940212,2781.8,2781.0,2.65389715]
[1643752623711,1.51940212,2781.8,2781.0,2.95389715]
[1643752623913,0.90806476,2781.9,2781.1,0.76136426]
[1643752624113,0.90806476,2781.9,2781.2,1.88678544]
[1643752624312,0.90806476,2781.9,2781.2,2.18678544]
[1643752624754,0.90806476,2781.9,2781.2,2.48678544]
[1643752625155,0.90806476,2781.9,2781.2,0.3]
[1643752625357,0.1797,2782.1,2781.1,23.44136426]
[1643752625559,1.51938064,2782.0,2781.2,0.42985823]
[1643752625757,0.1797,2781.9,2781.2,0.42985823]
[1643752625957,1.51943966,2781.8,2781.1,1.1431]
[1643752626357,1.51943966,2781.7,2781.1,1.1431]
[1643752626558,1.51943966,2781.6,2781.1,1.1431]
[1643752626761,0.70560307,2781.8,2781.1,1.1431]
[1643752626961,1.51952109,2781.7,2781.1,1.1431]
[1643752627361,1.51952109,2781.7,2781.1,1.4431]
[1643752627565,0.70560307,2781.8,2781.1,1.1431]
[1643752627763,1.51944071,2781.7,2781.1,1.1431]
[1643752628803,0.70560307,2781.8,2781.1,1.1431]
[1643752629198,0.70560307,2781.8,2781.1,1.4431]
[1643752629798,0.70560307,2781.8,2781.1,1.1431]
[1643752630400,1.51948109,2781.7,2781.1,1.1431]
[1643752630699,0.70560307,2781.8,2781.1,1.4431]
[1643752631100,0.70560307,2781.8,2781.1,1.1431]
[1643752631501,0.70560307,2781.8,2781.1,1.4431]
[1643752631701,0.70560307,2781.8,2781.1,1.1431]
[1643752631902,0.1797,2782.1,2781.1,1.1431]
[1643752632144,1.51946749,2782.0,2781.1,1.1431]
[1643752632349,0.1797,2781.9,2781.1,1.1431]
[1643752632645,1.51946749,2781.8,2781.1,1.1431]
[1643752633048,0.75680409,2781.8,2781.1,1.1431]
[1643752633449,1.51948052,2781.7,2781.1,1.1431]
[1643752634648,1.51948052,2781.7,2781.1,1.4431]
[1643752635249,0.75680409,2781.8,2781.1,1.4431]
[1643752635750,1.51948722,2781.7,2781.1,1.4431]
[1643752636407,0.75680409,2781.8,2781.1,1.4431]
[1643752637812,0.1797,2782.1,2781.1,1.4431]
[1643752638614,0.1797,2782.1,2781.1,3.29694615]
[1643752639016,0.1797,2782.1,2781.1,1.4431]
[1643752641855,0.75030198,2782.0,2781.2,1.84604316]
[1643752642051,0.1797,2781.9,2781.2,1.84604316]
[1643752642453,0.1797,2781.9,2781.1,1.4431]
[1643752642652,0.1797,2781.9,2781.2,2.8070123]
[1643752642852,0.1797,2782.1,2781.2,2.8070123]
[1643752643510,0.1797,2782.1,2781.2,3.23687053]
[1643752643707,0.1797,2782.1,2781.2,2.8070123]
[1643752643912,0.1797,2782.1,2781.2,3.23687053]
[1643752644111,0.1797,2782.1,2781.2,0.94524006]
[1643752644512,0.1797,2782.1,2781.1,1.4431]
[1643752645108,0.85848153,2782.1,2781.1,1.4431]
[1643752647010,0.94692431,2781.7,2781.1,1.1431]
[1643752653007,0.1797,2781.9,2781.1,3.63442061]
[1643752653209,0.85848153,2782.1,2781.2,1.0]
[1643752653405,0.85848153,2782.1,2781.3,1.91241685]
[1643752653614,0.67878153,2782.0,2781.1,3.37405599]
[1643752653810,0.67878153,2782.0,2781.1,4.37405599]
[1643752654212,0.67878153,2782.0,2781.1,2.34193]
[1643752654647,1.35857814,2781.9,2781.1,2.34193]
[1643752655049,1.35857814,2781.9,2781.1,4.1815932]
[1643752655452,0.67979661,2781.9,2781.1,4.1815932]
[1643752655650,1.35857814,2781.9,2781.1,4.1815932]
[1643752655850,0.67979661,2781.9,2781.2,1.0]
[1643752656053,0.67878153,2781.9,2781.2,1.0]
[1643752657053,0.67878153,2781.9,2781.1,4.19740309]
[1643752657253,1.51957379,2781.9,2781.2,1.0]
[1643752657556,1.51957379,2781.8,2781.1,2.34193]
[1643752657753,1.51957379,2781.7,2781.1,1.4431]
[1643752657954,1.51957379,2781.6,2781.1,1.4431]
[1643752658255,0.94586706,2781.5,2781.1,1.1431]
[1643752658513,0.67878153,2781.8,2781.0,0.89292846]
[1643752658712,0.67878153,2781.8,2781.0,1.19292846]
[1643752663057,0.1797,2781.9,2781.0,1.19292846]
[1643752663058,0.67878153,2781.7,2781.0,1.19292846]
[1643752664661,0.67878153,2781.8,2781.0,1.19292846]
[1643752664862,0.1797,2781.7,2781.0,1.19292846]
[1643752666201,0.85848153,2781.7,2781.0,1.19292846]
[1643752666400,0.67878153,2781.8,2781.0,1.19292846]
[1643752666609,0.1797,2781.7,2781.0,1.19292846]
[1643752667902,0.67878153,2781.8,2781.0,1.19292846]
[1643752669507,0.67878153,2781.8,2781.0,0.89292846]
[1643752669757,0.67878153,2781.8,2781.0,0.37592846]